[Event "Late-Titled-Tuesday-Blitz-October-10-2023"]
[Site "Chess.com"]
[Date "2023.10.10"]
[Round "1"]
[White "Xqswdc"]
[Black "Lion-Al-Messi"]
[Result "0-1"]
[WhiteElo "2324"]
[BlackElo "2637"]
[TimeControl "180+1"]
[EndTime "14:07:37 PDT"]
[Termination "Lion-Al-Messi won by resignation"]

1. e4 {[%clk 0:02:31.7]} 1... c5 {[%clk 0:02:59.4]} 2. Nc3 {[%clk 0:02:29.9]}
2... e6 {[%clk 0:02:55.7]} 3. Nge2 {[%clk 0:02:29.2]} 3... a6 {[%clk 0:02:50.9]}
4. g3 {[%clk 0:02:29.2]} 4... b5 {[%clk 0:02:47.9]} 5. Bg2 {[%clk 0:02:28.5]}
5... Bb7 {[%clk 0:02:46.7]} 6. d4 {[%clk 0:02:27.6]} 6... cxd4 {[%clk
0:02:46.4]} 7. Nxd4 {[%clk 0:02:28.5]} 7... b4 {[%clk 0:02:46.4]} 8. Na4 {[%clk
0:02:28.2]} 8... Nf6 {[%clk 0:02:46.1]} 9. O-O {[%clk 0:02:28.8]} 9... Bxe4
{[%clk 0:02:44.2]} 10. Bxe4 {[%clk 0:02:25.7]} 10... Nxe4 {[%clk 0:02:45.1]} 11.
c4 {[%clk 0:02:25]} 11... Be7 {[%clk 0:02:36.1]} 12. Qf3 {[%clk 0:01:57.3]}
12... f5 {[%clk 0:02:35.1]} 13. Nxf5 {[%clk 0:01:28.8]} 13... exf5 {[%clk
0:02:33.6]} 14. Qxf5 {[%clk 0:01:29.7]} 14... Nf6 {[%clk 0:02:30.8]} 15. Bg5
{[%clk 0:01:25.2]} 15... Nc6 {[%clk 0:02:25.1]} 16. Rad1 {[%clk 0:01:07.3]}
16... O-O {[%clk 0:02:23.6]} 17. Rfe1 {[%clk 0:00:58.5]} 17... Kh8 {[%clk
0:02:11.6]} 18. b3 {[%clk 0:00:45.4]} 18... Qc7 {[%clk 0:01:39.7]} 19. Bxf6
{[%clk 0:00:28.2]} 19... Rxf6 {[%clk 0:01:39.2]} 20. Qxd7 {[%clk 0:00:27.6]}
20... Qxd7 {[%clk 0:01:37.9]} 21. Rxd7 {[%clk 0:00:28.5]} 21... Bf8 {[%clk
0:01:29.2]} 22. Nb6 {[%clk 0:00:23.5]} 22... Rb8 {[%clk 0:01:29.4]} 23. Nd5
{[%clk 0:00:21]} 23... Rd6 {[%clk 0:01:20.1]} 24. Rxd6 {[%clk 0:00:17.6]} 24...
Bxd6 {[%clk 0:01:19.7]} 25. Re6 {[%clk 0:00:17.7]} 25... Rd8 {[%clk 0:00:51.8]}
26. c5 {[%clk 0:00:18.2]} 26... Bf8 {[%clk 0:00:44.1]} 27. Rxc6 {[%clk
0:00:15.9]} 27... Rxd5 {[%clk 0:00:44]} 28. Rc8 {[%clk 0:00:16.2]} 28... Kg8
{[%clk 0:00:43.9]} 29. c6 {[%clk 0:00:14.6]} 29... Rc5 {[%clk 0:00:43.9]} 30. c7
{[%clk 0:00:13.3]} 30... Kf7 {[%clk 0:00:33.7]} 31. Kg2 {[%clk 0:00:11.7]} 31...
a5 {[%clk 0:00:29.4]} 32. Kf3 {[%clk 0:00:11.6]} 32... Bd6 {[%clk 0:00:25.5]}
33. Ke4 {[%clk 0:00:09]} 33... Rxc7 {[%clk 0:00:19.2]} 34. Ra8 {[%clk
0:00:09.2]} 34... Re7+ {[%clk 0:00:18.1]} 35. Kd3 {[%clk 0:00:08.7]} 35... Bc7
{[%clk 0:00:19]} 36. h4 {[%clk 0:00:07.4]} 36... Rd7+ {[%clk 0:00:19.2]} 37. Ke2
{[%clk 0:00:05.4]} 37... h5 {[%clk 0:00:20.1]} 38. Ra6 {[%clk 0:00:05]} 38...
Re7+ {[%clk 0:00:20.2]} 39. Kd3 {[%clk 0:00:05]} 39... g6 {[%clk 0:00:21.1]} 40.
Kd2 {[%clk 0:00:05.2]} 40... Rd7+ {[%clk 0:00:20.6]} 41. Ke2 {[%clk 0:00:05.5]}
41... Rd6 {[%clk 0:00:19.3]} 42. Ra8 {[%clk 0:00:05.4]} 42... Re6+ {[%clk
0:00:19.3]} 43. Kd3 {[%clk 0:00:05.6]} 43... Kf6 {[%clk 0:00:18.5]} 44. Ra7
{[%clk 0:00:05.7]} 44... Rd6+ {[%clk 0:00:18.7]} 45. Ke2 {[%clk 0:00:05.6]}
45... Rc6 {[%clk 0:00:18.8]} 46. Kd3 {[%clk 0:00:05.5]} 46... Kf5 {[%clk
0:00:18.8]} 47. Ke3 {[%clk 0:00:05.8]} 47... Bb6+ {[%clk 0:00:18.7]} 0-1

[Event "Late-Titled-Tuesday-Blitz-October-10-2023"]
[Site "Chess.com"]
[Date "2023.10.10"]
[Round "1"]
[White "IngOscarArdila"]
[Black "FontVella8"]
[Result "0-1"]
[WhiteElo "2321"]
[BlackElo "2635"]
[TimeControl "180+1"]
[EndTime "14:07:40 PDT"]
[Termination "FontVella8 won by resignation"]

1. d4 {[%clk 0:03:00.9]} 1... d5 {[%clk 0:02:56.5]} 2. c4 {[%clk 0:03:01]} 2...
e6 {[%clk 0:02:56.7]} 3. Nc3 {[%clk 0:03:00.8]} 3... Nf6 {[%clk 0:02:56.7]} 4.
Bg5 {[%clk 0:03:00.7]} 4... Be7 {[%clk 0:02:55.9]} 5. Nf3 {[%clk 0:03:00.6]}
5... h6 {[%clk 0:02:56.4]} 6. Bh4 {[%clk 0:03:00.3]} 6... O-O {[%clk 0:02:56.3]}
7. e3 {[%clk 0:03:00.5]} 7... b6 {[%clk 0:02:56.5]} 8. Be2 {[%clk 0:03:00.1]}
8... Bb7 {[%clk 0:02:56]} 9. O-O {[%clk 0:03:00.3]} 9... Nbd7 {[%clk 0:02:55.9]}
10. Rc1 {[%clk 0:02:59.7]} 10... a6 {[%clk 0:02:55]} 11. a3 {[%clk 0:02:58.9]}
11... dxc4 {[%clk 0:02:54.3]} 12. Bxc4 {[%clk 0:02:58.6]} 12... b5 {[%clk
0:02:54.7]} 13. Be2 {[%clk 0:02:58.5]} 13... c5 {[%clk 0:02:55.2]} 14. dxc5
{[%clk 0:02:51.8]} 14... Nxc5 {[%clk 0:02:50.3]} 15. b4 {[%clk 0:02:51.3]} 15...
Nce4 {[%clk 0:02:42.5]} 16. Nxe4 {[%clk 0:02:48.9]} 16... Nxe4 {[%clk
0:02:39.3]} 17. Bxe7 {[%clk 0:02:39.6]} 17... Qxe7 {[%clk 0:02:39.1]} 18. Qb3
{[%clk 0:02:32.2]} 18... Bd5 {[%clk 0:02:37.7]} 19. Qb2 {[%clk 0:02:31.7]} 19...
Rfd8 {[%clk 0:02:35.6]} 20. Nd4 {[%clk 0:02:31.4]} 20... Rac8 {[%clk 0:02:33.7]}
21. f3 {[%clk 0:02:31]} 21... Nd6 {[%clk 0:02:29.8]} 22. Rxc8 {[%clk 0:02:30.4]}
22... Rxc8 {[%clk 0:02:29.6]} 23. Rc1 {[%clk 0:02:30.7]} 23... Rxc1+ {[%clk
0:02:15.7]} 24. Qxc1 {[%clk 0:02:30.5]} 24... e5 {[%clk 0:02:16.3]} 25. Nc2
{[%clk 0:02:12.3]} 25... Bc4 {[%clk 0:02:14]} 26. Qd2 {[%clk 0:02:09]} 26...
Bxe2 {[%clk 0:02:10.4]} 27. Qxe2 {[%clk 0:02:09.4]} 27... Nc4 {[%clk 0:02:11]}
28. Qd3 {[%clk 0:02:07.8]} 28... g6 {[%clk 0:02:06.9]} 29. a4 {[%clk 0:02:05.8]}
29... Nb2 {[%clk 0:02:03.9]} 30. Qd5 {[%clk 0:01:59.4]} 30... Nxa4 {[%clk
0:01:58.1]} 31. Qa8+ {[%clk 0:01:58.6]} 31... Kg7 {[%clk 0:01:58]} 32. Qxa6
{[%clk 0:01:58.2]} 32... Qd7 {[%clk 0:01:57.5]} 33. Ne1 {[%clk 0:01:40.5]} 33...
Qd2 {[%clk 0:01:34.4]} 34. Kf1 {[%clk 0:01:36.5]} 34... Nc3 {[%clk 0:01:33.5]}
35. Qa1 {[%clk 0:00:41.3]} 35... Qe2+ {[%clk 0:01:10]} 36. Kg1 {[%clk
0:00:41.1]} 36... Qxe3+ {[%clk 0:01:07.5]} 37. Kh1 {[%clk 0:00:19]} 37... Qe2
{[%clk 0:01:00.6]} 38. h3 {[%clk 0:00:18.4]} 38... Nd1 {[%clk 0:01:00.7]} 39.
Kh2 {[%clk 0:00:16.6]} 39... Qxe1 {[%clk 0:01:00.2]} 40. Qa8 {[%clk 0:00:13.8]}
40... Qe3 {[%clk 0:00:53.1]} 41. Qd8 {[%clk 0:00:13.1]} 41... Nf2 {[%clk
0:00:51.1]} 42. Qd5 {[%clk 0:00:10.2]} 42... Nd3 {[%clk 0:00:36.2]} 43. Qxb5
{[%clk 0:00:08.6]} 43... Nf4 {[%clk 0:00:33.3]} 44. Qf1 {[%clk 0:00:07.5]} 44...
Qb3 {[%clk 0:00:28.1]} 45. b5 {[%clk 0:00:07.6]} 45... Qb2 {[%clk 0:00:27.5]}
46. Kh1 {[%clk 0:00:06.7]} 46... h5 {[%clk 0:00:27]} 47. g3 {[%clk 0:00:06.4]}
47... Ne2 {[%clk 0:00:21.9]} 48. Qe1 {[%clk 0:00:05.3]} 48... Qxb5 {[%clk
0:00:20.6]} 49. Kh2 {[%clk 0:00:03.4]} 49... Nd4 {[%clk 0:00:19.6]} 50. Qe4
{[%clk 0:00:03.3]} 50... Qe2+ {[%clk 0:00:18.5]} 51. Kg1 {[%clk 0:00:03.8]}
51... Nxf3+ {[%clk 0:00:17.9]} 0-1

[Event "Late-Titled-Tuesday-Blitz-October-10-2023"]
[Site "Chess.com"]
[Date "2023.10.10"]
[Round "1"]
[White "AsadliVugar"]
[Black "Mikhal867"]
[Result "0-1"]
[WhiteElo "2858"]
[BlackElo "2468"]
[TimeControl "180+1"]
[EndTime "14:07:45 PDT"]
[Termination "Mikhal867 won by resignation"]

1. e4 {[%clk 0:03:00.9]} 1... g6 {[%clk 0:02:57.8]} 2. d4 {[%clk 0:03:00.5]}
2... Bg7 {[%clk 0:02:57.7]} 3. Nc3 {[%clk 0:02:57.7]} 3... d6 {[%clk 0:02:57.3]}
4. h3 {[%clk 0:02:54.3]} 4... a6 {[%clk 0:02:56.4]} 5. Nf3 {[%clk 0:02:53.4]}
5... b5 {[%clk 0:02:56]} 6. Be3 {[%clk 0:02:49.3]} 6... Bb7 {[%clk 0:02:54.9]}
7. Bd3 {[%clk 0:02:49.3]} 7... Nd7 {[%clk 0:02:53]} 8. Ne2 {[%clk 0:02:47.2]}
8... c5 {[%clk 0:02:51.3]} 9. c3 {[%clk 0:02:47]} 9... Ngf6 {[%clk 0:02:49.1]}
10. Ng3 {[%clk 0:02:44]} 10... O-O {[%clk 0:02:45.2]} 11. O-O {[%clk 0:02:43.3]}
11... e5 {[%clk 0:02:31.1]} 12. d5 {[%clk 0:02:34.6]} 12... c4 {[%clk
0:02:26.8]} 13. Bc2 {[%clk 0:02:34.2]} 13... Ne8 {[%clk 0:02:18.1]} 14. a4
{[%clk 0:02:33.6]} 14... Qc7 {[%clk 0:02:14.6]} 15. Qe2 {[%clk 0:02:28]} 15...
Nc5 {[%clk 0:02:12.9]} 16. axb5 {[%clk 0:02:25.9]} 16... axb5 {[%clk 0:02:12.5]}
17. Rxa8 {[%clk 0:02:26.8]} 17... Bxa8 {[%clk 0:02:12.3]} 18. Ra1 {[%clk
0:02:27.7]} 18... Bb7 {[%clk 0:02:10.1]} 19. Nh2 {[%clk 0:02:05.2]} 19... Nf6
{[%clk 0:02:07.7]} 20. Ng4 {[%clk 0:02:03.7]} 20... Ra8 {[%clk 0:02:04.2]} 21.
Rxa8+ {[%clk 0:02:01.3]} 21... Bxa8 {[%clk 0:02:03.5]} 22. h4 {[%clk 0:01:45.6]}
22... h5 {[%clk 0:02:00]} 23. Nxf6+ {[%clk 0:01:42.3]} 23... Bxf6 {[%clk
0:02:00.1]} 24. Bg5 {[%clk 0:01:42.4]} 24... Qd8 {[%clk 0:01:55.3]} 25. Qe3
{[%clk 0:01:41.7]} 25... Bb7 {[%clk 0:01:52.2]} 26. Bd1 {[%clk 0:01:38.5]} 26...
Bxg5 {[%clk 0:01:49.5]} 27. hxg5 {[%clk 0:01:37.5]} 27... Bc8 {[%clk 0:01:48.4]}
28. Bxh5 {[%clk 0:01:30.4]} 28... gxh5 {[%clk 0:01:47.4]} 29. Nxh5 {[%clk
0:01:31.3]} 29... Nd7 {[%clk 0:01:22.7]} 30. Qg3 {[%clk 0:01:23.3]} 30... Kf8
{[%clk 0:01:14.7]} 31. Qh4 {[%clk 0:01:22]} 31... Bb7 {[%clk 0:01:01.2]} 32. Ng3
{[%clk 0:01:16.5]} 32... Ke8 {[%clk 0:00:55.4]} 33. Nf5 {[%clk 0:01:15.4]} 33...
Nf8 {[%clk 0:00:55.2]} 34. f3 {[%clk 0:01:08.5]} 34... Kd7 {[%clk 0:00:53.8]}
35. Qf2 {[%clk 0:01:00]} 35... Kc7 {[%clk 0:00:47.7]} 36. Qe3 {[%clk 0:00:50.6]}
36... Nd7 {[%clk 0:00:43]} 37. g3 {[%clk 0:00:42.9]} 37... Nc5 {[%clk
0:00:41.2]} 38. f4 {[%clk 0:00:40.9]} 38... exf4 {[%clk 0:00:40.7]} 39. gxf4
{[%clk 0:00:37.7]} 39... Bc8 {[%clk 0:00:40.8]} 40. Nd4 {[%clk 0:00:30.7]} 40...
Kb6 {[%clk 0:00:40.5]} 41. e5 {[%clk 0:00:21]} 41... dxe5 {[%clk 0:00:34.8]} 42.
Qxe5 {[%clk 0:00:21.9]} 42... Qc7 {[%clk 0:00:26.2]} 43. d6 {[%clk 0:00:21.9]}
43... Qa7 {[%clk 0:00:24.9]} 44. d7 {[%clk 0:00:13]} 44... Qa1+ {[%clk
0:00:22.2]} 45. Kf2 {[%clk 0:00:12.1]} 45... Qxb2+ {[%clk 0:00:21.8]} 46. Kf3
{[%clk 0:00:11.7]} 46... Qxc3+ {[%clk 0:00:21.5]} 47. Kg2 {[%clk 0:00:10.6]}
47... Qd2+ {[%clk 0:00:20.8]} 48. Kg3 {[%clk 0:00:10.7]} 48... Qd3+ {[%clk
0:00:19.3]} 49. Kh4 {[%clk 0:00:10.7]} 49... Qh7+ {[%clk 0:00:15.9]} 50. Kg3
{[%clk 0:00:10.7]} 50... Qd3+ {[%clk 0:00:15.7]} 51. Kh4 {[%clk 0:00:06.5]}
51... Nxd7 {[%clk 0:00:15.8]} 52. Qe6+ {[%clk 0:00:06.2]} 52... fxe6 {[%clk
0:00:15.1]} 0-1

[Event "Late-Titled-Tuesday-Blitz-October-10-2023"]
[Site "Chess.com"]
[Date "2023.10.10"]
[Round "1"]
[White "chosenpr"]
[Black "Maksimus1998"]
[Result "0-1"]
[WhiteElo "2252"]
[BlackElo "2604"]
[TimeControl "180+1"]
[EndTime "14:07:47 PDT"]
[Termination "Maksimus1998 won by checkmate"]

1. e4 {[%clk 0:03:00.6]} 1... c5 {[%clk 0:02:58.1]} 2. Nf3 {[%clk 0:03:01.4]}
2... a6 {[%clk 0:02:57.5]} 3. d4 {[%clk 0:03:01.4]} 3... cxd4 {[%clk 0:02:56.2]}
4. Nxd4 {[%clk 0:03:02.3]} 4... Nf6 {[%clk 0:02:56.1]} 5. Nc3 {[%clk 0:03:02.4]}
5... e5 {[%clk 0:02:55.4]} 6. Nf3 {[%clk 0:03:02.3]} 6... Nc6 {[%clk 0:02:53.8]}
7. Bg5 {[%clk 0:03:00.7]} 7... Bb4 {[%clk 0:02:52.2]} 8. Bd3 {[%clk 0:02:56.1]}
8... h6 {[%clk 0:02:49.3]} 9. Bxf6 {[%clk 0:02:56.2]} 9... Qxf6 {[%clk
0:02:50.2]} 10. O-O {[%clk 0:02:55.6]} 10... Bxc3 {[%clk 0:02:50]} 11. bxc3
{[%clk 0:02:56.5]} 11... O-O {[%clk 0:02:49.7]} 12. Re1 {[%clk 0:02:50.8]} 12...
d6 {[%clk 0:02:48.9]} 13. h3 {[%clk 0:02:50.5]} 13... Be6 {[%clk 0:02:46]} 14.
Nh2 {[%clk 0:02:51.2]} 14... Rac8 {[%clk 0:02:43.6]} 15. Ng4 {[%clk 0:02:42.9]}
15... Qe7 {[%clk 0:02:41.8]} 16. Ne3 {[%clk 0:02:42.5]} 16... Na5 {[%clk
0:02:35.9]} 17. Rb1 {[%clk 0:02:31]} 17... Rc7 {[%clk 0:02:28.3]} 18. Qd2 {[%clk
0:02:22.7]} 18... Rfc8 {[%clk 0:02:26.5]} 19. Rb6 {[%clk 0:02:03.8]} 19... Rxc3
{[%clk 0:02:07.6]} 20. Nd1 {[%clk 0:01:48.2]} 20... R3c5 {[%clk 0:02:06.7]} 21.
Re3 {[%clk 0:01:29.9]} 21... Qc7 {[%clk 0:02:03.6]} 22. Rb1 {[%clk 0:01:13.9]}
22... Nc4 {[%clk 0:02:03.1]} 23. Bxc4 {[%clk 0:01:13.2]} 23... Rxc4 {[%clk
0:02:02.4]} 24. Rg3 {[%clk 0:01:14]} 24... Kf8 {[%clk 0:02:02.2]} 25. Ne3 {[%clk
0:00:58.6]} 25... Rxe4 {[%clk 0:02:01.5]} 26. Qd3 {[%clk 0:00:59.1]} 26... Qc6
{[%clk 0:01:39.5]} 27. a4 {[%clk 0:00:42.3]} 27... d5 {[%clk 0:01:24.5]} 28. f3
{[%clk 0:00:40.5]} 28... Rxa4 {[%clk 0:00:56.9]} 29. Qh7 {[%clk 0:00:36.8]}
29... g6 {[%clk 0:00:55.7]} 30. Qxh6+ {[%clk 0:00:34.4]} 30... Kg8 {[%clk
0:00:50.8]} 31. Ng4 {[%clk 0:00:17.7]} 31... Bxg4 {[%clk 0:00:49.6]} 32. hxg4
{[%clk 0:00:18.6]} 32... Qf6 {[%clk 0:00:27.4]} 33. Rh3 {[%clk 0:00:14.1]} 33...
Qg7 {[%clk 0:00:24.9]} 34. Qd2 {[%clk 0:00:11.8]} 34... Rd4 {[%clk 0:00:22.7]}
35. Qa5 {[%clk 0:00:07.9]} 35... Qf6 {[%clk 0:00:15.3]} 36. Rxb7 {[%clk
0:00:07]} 36... Rd1+ {[%clk 0:00:15]} 37. Kh2 {[%clk 0:00:07.9]} 37... Qf4+
{[%clk 0:00:14.6]} 38. Rg3 {[%clk 0:00:08.3]} 38... d4 {[%clk 0:00:10.2]} 39.
Qxa6 {[%clk 0:00:07]} 39... Rf8 {[%clk 0:00:09.2]} 40. Qc6 {[%clk 0:00:06.2]}
40... Qc1 {[%clk 0:00:08.6]} 41. Rh3 {[%clk 0:00:05.3]} 41... Rh1+ {[%clk
0:00:08.4]} 42. Kg3 {[%clk 0:00:05.9]} 42... Qe1# {[%clk 0:00:08.5]} 0-1

[Event "Late-Titled-Tuesday-Blitz-October-10-2023"]
[Site "Chess.com"]
[Date "2023.10.10"]
[Round "1"]
[White "Alexander_Donchenko"]
[Black "maximnovik"]
[Result "1-0"]
[WhiteElo "2862"]
[BlackElo "2449"]
[TimeControl "180+1"]
[EndTime "14:07:48 PDT"]
[Termination "Alexander_Donchenko won by resignation"]

1. d4 {[%clk 0:03:00.9]} 1... Nf6 {[%clk 0:02:59.9]} 2. c4 {[%clk 0:03:01.3]}
2... g6 {[%clk 0:03:00.2]} 3. Nc3 {[%clk 0:03:00.3]} 3... d5 {[%clk 0:03:00.5]}
4. Nf3 {[%clk 0:03:00.3]} 4... Bg7 {[%clk 0:03:00.4]} 5. Qb3 {[%clk 0:02:59.2]}
5... dxc4 {[%clk 0:03:00.1]} 6. Qxc4 {[%clk 0:03:00.1]} 6... O-O {[%clk
0:02:59.9]} 7. e4 {[%clk 0:03:00.5]} 7... Nfd7 {[%clk 0:03:00.1]} 8. Be2 {[%clk
0:02:58.4]} 8... Nb6 {[%clk 0:02:58.9]} 9. Qb3 {[%clk 0:02:59]} 9... Bg4 {[%clk
0:02:56.5]} 10. Be3 {[%clk 0:02:58.1]} 10... Nc6 {[%clk 0:02:55.3]} 11. d5
{[%clk 0:02:55.7]} 11... Bxf3 {[%clk 0:02:52.3]} 12. gxf3 {[%clk 0:02:55.3]}
12... Nd4 {[%clk 0:02:49.5]} 13. Qd1 {[%clk 0:02:55.4]} 13... Nxe2 {[%clk
0:02:46.9]} 14. Qxe2 {[%clk 0:02:56.3]} 14... c6 {[%clk 0:02:45.2]} 15. dxc6
{[%clk 0:02:55.8]} 15... bxc6 {[%clk 0:02:44.8]} 16. h4 {[%clk 0:02:56.4]} 16...
Qd7 {[%clk 0:02:39.9]} 17. h5 {[%clk 0:02:56.1]} 17... Rfd8 {[%clk 0:02:35.2]}
18. hxg6 {[%clk 0:02:55.5]} 18... hxg6 {[%clk 0:02:35]} 19. Bh6 {[%clk
0:02:51.7]} 19... Bh8 {[%clk 0:02:21]} 20. Rc1 {[%clk 0:02:46]} 20... Qe6 {[%clk
0:02:18.6]} 21. b3 {[%clk 0:02:45.4]} 21... Rd7 {[%clk 0:02:12.7]} 22. Kf1
{[%clk 0:02:35.3]} 22... Rad8 {[%clk 0:02:11.8]} 23. Kg2 {[%clk 0:02:35.9]}
23... Rd3 {[%clk 0:02:07.7]} 24. Rhd1 {[%clk 0:02:31.6]} 24... Rxd1 {[%clk
0:02:02.9]} 25. Rxd1 {[%clk 0:02:32]} 25... Rxd1 {[%clk 0:02:01.4]} 26. Nxd1
{[%clk 0:02:32.9]} 26... Nd7 {[%clk 0:01:50.4]} 27. Be3 {[%clk 0:02:27.8]} 27...
c5 {[%clk 0:01:42.3]} 28. Qd3 {[%clk 0:02:23.7]} 28... Bf6 {[%clk 0:01:37.8]}
29. Bf4 {[%clk 0:02:13.1]} 29... Bd4 {[%clk 0:01:32.6]} 30. Ne3 {[%clk
0:02:13.2]} 30... Ne5 {[%clk 0:01:28.6]} 31. Bxe5 {[%clk 0:02:12.5]} 31... Qxe5
{[%clk 0:01:27.6]} 32. Kf1 {[%clk 0:02:08.3]} 32... Kg7 {[%clk 0:01:26.7]} 33.
Ke2 {[%clk 0:02:00.9]} 33... e6 {[%clk 0:01:22]} 34. Nc2 {[%clk 0:02:00.7]}
34... f5 {[%clk 0:01:16.7]} 35. Na3 {[%clk 0:01:55.5]} 35... Qf4 {[%clk
0:01:08.3]} 36. Nc4 {[%clk 0:01:48.6]} 36... Qc1 {[%clk 0:01:04.8]} 37. Qd2
{[%clk 0:01:45.6]} 37... Qb1 {[%clk 0:00:57.2]} 38. exf5 {[%clk 0:01:43.1]}
38... exf5 {[%clk 0:00:53.1]} 39. Ne3 {[%clk 0:01:37.2]} 39... Kh7 {[%clk
0:00:36.1]} 40. Qc2 {[%clk 0:01:36.2]} 40... Qa1 {[%clk 0:00:33.7]} 41. Nd5
{[%clk 0:01:32]} 41... Qg1 {[%clk 0:00:31.8]} 42. Ne3 {[%clk 0:01:31.9]} 42...
Qa1 {[%clk 0:00:28.6]} 43. a4 {[%clk 0:01:30.3]} 43... a6 {[%clk 0:00:26.3]} 44.
Kd3 {[%clk 0:01:29.8]} 44... Qh1 {[%clk 0:00:19.9]} 45. Qd1 {[%clk 0:01:25.9]}
45... Qh2 {[%clk 0:00:18.5]} 46. Qe2 {[%clk 0:01:19.4]} 46... Qb8 {[%clk
0:00:17.7]} 47. Kc2 {[%clk 0:01:18.9]} 47... Qe5 {[%clk 0:00:17.2]} 48. Qxa6
{[%clk 0:01:12.7]} 48... Bxe3 {[%clk 0:00:16.2]} 49. fxe3 {[%clk 0:01:13.2]}
49... Qxe3 {[%clk 0:00:16.5]} 50. Qd3 {[%clk 0:01:13.6]} 50... Qf2+ {[%clk
0:00:16.4]} 51. Kc3 {[%clk 0:01:13.4]} 51... Qe1+ {[%clk 0:00:16]} 52. Kc4
{[%clk 0:01:13.7]} 52... Qb4+ {[%clk 0:00:16.1]} 53. Kd5 {[%clk 0:01:14.4]}
53... Kh6 {[%clk 0:00:15.9]} 54. Qc4 {[%clk 0:01:13.1]} 54... Qb7+ {[%clk
0:00:16]} 55. Kxc5 {[%clk 0:01:11.2]} 55... Qxf3 {[%clk 0:00:16.9]} 56. a5
{[%clk 0:01:09.7]} 56... f4 {[%clk 0:00:17.1]} 57. a6 {[%clk 0:01:09.3]} 57...
Qe3+ {[%clk 0:00:13.7]} 58. Qd4 {[%clk 0:01:09.3]} 58... Qe7+ {[%clk 0:00:13.8]}
59. Kb5 {[%clk 0:01:07.9]} 59... Qe8+ {[%clk 0:00:13.6]} 60. Ka5 {[%clk
0:01:07.5]} 60... Qe6 {[%clk 0:00:13]} 61. Qxf4+ {[%clk 0:01:07]} 61... g5
{[%clk 0:00:13.2]} 62. Qc4 {[%clk 0:01:03.8]} 62... Qd7 {[%clk 0:00:11.1]} 63.
Qb5 {[%clk 0:01:01.2]} 63... Qd2+ {[%clk 0:00:09.9]} 64. b4 {[%clk 0:01:01.4]}
64... g4 {[%clk 0:00:09.5]} 65. a7 {[%clk 0:01:00.5]} 65... Qa2+ {[%clk
0:00:07.7]} 66. Kb6 {[%clk 0:01:00.8]} 66... g3 {[%clk 0:00:05.4]} 67. Qc6+
{[%clk 0:01:00.2]} 67... Kg5 {[%clk 0:00:05.2]} 68. a8=Q {[%clk 0:01:00.4]}
68... Qf2+ {[%clk 0:00:05.2]} 69. Qc5+ {[%clk 0:01:00.8]} 69... Qxc5+ {[%clk
0:00:04.6]} 70. Kxc5 {[%clk 0:01:01.7]} 1-0

[Event "Late-Titled-Tuesday-Blitz-October-10-2023"]
[Site "Chess.com"]
[Date "2023.10.10"]
[Round "1"]
[White "JG-17"]
[Black "rasmussvane"]
[Result "0-1"]
[WhiteElo "2504"]
[BlackElo "2997"]
[TimeControl "180+1"]
[EndTime "14:07:50 PDT"]
[Termination "rasmussvane won by resignation"]

1. Nf3 {[%clk 0:02:54.5]} 1... d5 {[%clk 0:02:59.5]} 2. b3 {[%clk 0:02:54.8]}
2... Bf5 {[%clk 0:02:55.1]} 3. Bb2 {[%clk 0:02:54.5]} 3... h6 {[%clk 0:02:54.9]}
4. g3 {[%clk 0:02:54.7]} 4... e6 {[%clk 0:02:54.9]} 5. Bg2 {[%clk 0:02:55.2]}
5... Nf6 {[%clk 0:02:54.4]} 6. O-O {[%clk 0:02:55.5]} 6... Be7 {[%clk
0:02:52.1]} 7. d3 {[%clk 0:02:56.2]} 7... O-O {[%clk 0:02:51.8]} 8. Nbd2 {[%clk
0:02:56.7]} 8... Bh7 {[%clk 0:02:51.8]} 9. Re1 {[%clk 0:02:56.7]} 9... c5 {[%clk
0:02:50.4]} 10. e4 {[%clk 0:02:56.1]} 10... Nc6 {[%clk 0:02:50.3]} 11. Ne5
{[%clk 0:02:52]} 11... Nxe5 {[%clk 0:02:36.7]} 12. Bxe5 {[%clk 0:02:52.9]} 12...
dxe4 {[%clk 0:02:14.4]} 13. Nxe4 {[%clk 0:02:36.5]} 13... Nxe4 {[%clk
0:01:53.8]} 14. dxe4 {[%clk 0:02:34.2]} 14... Qxd1 {[%clk 0:01:44.9]} 15. Raxd1
{[%clk 0:02:33.1]} 15... Rfd8 {[%clk 0:01:44.4]} 16. Bc7 {[%clk 0:02:27.9]}
16... Rxd1 {[%clk 0:01:32.9]} 17. Rxd1 {[%clk 0:02:28.8]} 17... Kf8 {[%clk
0:01:33.1]} 18. c4 {[%clk 0:02:20.6]} 18... Rc8 {[%clk 0:01:27.7]} 19. Bd6
{[%clk 0:02:07.9]} 19... Bxd6 {[%clk 0:01:13.2]} 20. Rxd6 {[%clk 0:02:05.6]}
20... Ke7 {[%clk 0:01:13.5]} 21. Rd2 {[%clk 0:02:05.1]} 21... a6 {[%clk
0:01:01]} 22. a4 {[%clk 0:01:55.7]} 22... Rd8 {[%clk 0:00:52.8]} 23. Rxd8 {[%clk
0:01:45.6]} 23... Kxd8 {[%clk 0:00:53.7]} 24. Kf1 {[%clk 0:01:35.1]} 24... Kc7
{[%clk 0:00:53.8]} 25. Ke2 {[%clk 0:01:27.8]} 25... e5 {[%clk 0:00:39.1]} 26. f4
{[%clk 0:01:22.9]} 26... Kd6 {[%clk 0:00:34.4]} 27. h3 {[%clk 0:01:10.9]} 27...
f6 {[%clk 0:00:30.7]} 28. f5 {[%clk 0:01:09.6]} 28... Bg8 {[%clk 0:00:30.6]} 29.
Kd3 {[%clk 0:01:04]} 29... Bf7 {[%clk 0:00:20]} 30. g4 {[%clk 0:01:02.6]} 30...
Kc6 {[%clk 0:00:18.4]} 31. Bf3 {[%clk 0:00:58.4]} 31... Kb6 {[%clk 0:00:18.6]}
32. Kc3 {[%clk 0:00:55.9]} 32... Ka5 {[%clk 0:00:19]} 33. Be2 {[%clk 0:00:50.1]}
33... Be8 {[%clk 0:00:17.4]} 34. h4 {[%clk 0:00:45.5]} 34... Bc6 {[%clk
0:00:13.4]} 35. Bd3 {[%clk 0:00:42.1]} 35... Bd7 {[%clk 0:00:13.8]} 36. Be2
{[%clk 0:00:40.7]} 36... Be8 {[%clk 0:00:14.1]} 37. h5 {[%clk 0:00:36.5]} 37...
Bd7 {[%clk 0:00:14]} 38. Bf1 {[%clk 0:00:34.9]} 38... Be8 {[%clk 0:00:12.7]} 39.
Be2 {[%clk 0:00:34.6]} 39... Bc6 {[%clk 0:00:12.4]} 40. Bd3 {[%clk 0:00:34.8]}
40... Bd7 {[%clk 0:00:11.7]} 41. Be2 {[%clk 0:00:34.5]} 41... b5 {[%clk
0:00:11.1]} 42. axb5 {[%clk 0:00:33.5]} 42... axb5 {[%clk 0:00:12]} 43. Bf1
{[%clk 0:00:25.5]} 43... Bc6 {[%clk 0:00:11.1]} 44. Bd3 {[%clk 0:00:25.2]} 44...
Kb6 {[%clk 0:00:11.6]} 45. Kc2 {[%clk 0:00:09.8]} 45... bxc4 {[%clk 0:00:09.3]}
46. bxc4 {[%clk 0:00:08.5]} 46... Ka5 {[%clk 0:00:09.7]} 47. Kb3 {[%clk
0:00:07.8]} 47... Ba4+ {[%clk 0:00:09.8]} 48. Ka3 {[%clk 0:00:08.4]} 48... Bd1
{[%clk 0:00:10.1]} 49. Bf1 {[%clk 0:00:02.3]} 49... Bxg4 {[%clk 0:00:10.2]} 50.
Bd3 {[%clk 0:00:02.1]} 50... Bxh5 {[%clk 0:00:10.3]} 51. Bc2 {[%clk 0:00:02.2]}
51... Bf3 {[%clk 0:00:09.5]} 52. Ba4 {[%clk 0:00:02.6]} 52... h5 {[%clk
0:00:09.3]} 0-1